fUST/lending_fUST_20240815
["ID","MTS","AMOUNT","RATE_DAILY","PERIOD"]
[334984334,1723711843659,-505.8221134,0.00013698,2]
[334984335,1723711843668,-500.0,0.00013698,2]
[334984336,1723711843678,-727.97,0.00013698,2]
[334984338,1723711843688,-503.8766555,0.00013698,2]
[334984340,1723711843697,-500.0,0.00013698,2]
[334984342,1723711843707,-505.36823899,0.00013698,2]
[334984344,1723711843717,-500.0,0.00013698,2]
[334984346,1723711843726,-362.92673619,0.00013698,2]
[334984383,1723711844083,-874.38861961,0.00013596,2]
[334984386,1723711844093,-137.07326381,0.00013698,2]
[334984387,1723711844102,-500.0,0.00013698,2]
[334984389,1723711844112,-500.0,0.00013698,2]
[334984391,1723711844121,-1034.7,0.00013698,2]
[334984393,1723711844132,-500.0,0.00013698,2]
[334984396,1723711844143,-500.0,0.00013698,2]
[334984398,1723711844154,-500.0,0.00013698,2]
[334984400,1723711844163,-504.15022488,0.00013698,2]
[334984402,1723711844173,-500.0,0.00013698,2]
[334984404,1723711844185,-500.0,0.00013698,2]
[334984406,1723711844194,-528.07,0.00013698,2]
[334984408,1723711844203,-996.57,0.00013698,2]
[334984410,1723711844213,-500.0,0.00013698,2]
[334984412,1723711844222,-500.0,0.00013698,2]
[334984414,1723711844232,-505.12925518,0.00013698,2]
[334984416,1723711844241,-670.04,0.00013698,2]
[334984418,1723711844251,-503.10120113,0.00013698,2]
[334984432,1723711844378,-500.0,0.00013698,2]
[334984434,1723711844389,-500.0,0.00013698,2]
[334984436,1723711844399,-723.84,0.00013698,2]
[334984438,1723711844408,-510.09570493,0.00013698,2]
[334984440,1723711844418,-506.09504501,0.00013698,2]
[334984442,1723711844427,-500.0,0.00013698,2]
[334984444,1723711844438,-506.66210793,0.00013698,2]
[334984446,1723711844448,-503.31822686,0.00013698,2]
[334984448,1723711844457,-511.80879,0.00013698,2]
[334984450,1723711844466,-516.07239877,0.00013698,2]
[334984452,1723711844476,-504.13968503,0.00013698,2]
[334984453,1723711844485,-676.96,0.00013698,2]
[334984455,1723711844494,-721.26,0.00013698,2]
[334984457,1723711844503,-1403.66,0.00013698,2]
[334984459,1723711844513,-552.04159637,0.00013698,2]
[334984461,1723711844522,-500.0,0.00013698,2]
[334984463,1723711844531,-508.9412357,0.00013698,2]
[334984465,1723711844541,-500.0,0.00013698,2]
[334984467,1723711844550,-736.41,0.00013698,2]
[334984469,1723711844559,-502.94732363,0.00013698,2]
[334984471,1723711844569,-506.14899236,0.00013698,2]
[334984473,1723711844579,-664.11966123,0.00013698,2]
[334984683,1723711846644,-207.41445,0.00012978,2]
[334984685,1723711846657,-874.38861961,0.00013598,2]
[334984687,1723711846667,-986.61563658,0.00013697,2]
[334984689,1723711846677,-97.16033877,0.00013698,2]
[334984691,1723711846697,-528.09186588,0.00013698,2]
[334984693,1723711846708,-500.0,0.00013698,2]
[334984695,1723711846718,-500.0,0.00013698,2]
[334984697,1723711846729,-500.0,0.00013698,2]
[334984700,1723711846741,-509.09791838,0.00013698,2]
[334984702,1723711846751,-248.63342044,0.00013698,2]
[334984704,1723711846764,-341.32775365,0.00013698,2]
[334984706,1723711846774,-610.71,0.00013698,2]
[334984708,1723711846784,-500.0,0.00013698,2]
[334984710,1723711846794,-500.0,0.00013698,2]
[334984712,1723711846804,-505.23308106,0.00013698,2]
[334984714,1723711846815,-235.67457143,0.00013698,2]
[334985452,1723711854392,273.37336231,9.9e-05,2]
[334986975,1723711869841,273.37336231,9.9e-05,2]
[334988422,1723711885387,273.37336231,9.9e-05,2]
[334989529,1723711901473,273.37336231,9.9e-05,2]
[334989530,1723711916855,273.37336231,9.9e-05,2]
[334989531,1723711920335,676.49192867,9.9e-05,2]
[334989532,1723711922887,404.97965185,9.9e-05,2]
[334989547,1723711935774,2201.5957072,9.9e-05,2]
[334989548,1723711970173,218.16591675,9.9e-05,2]
[334989553,1723712663608,569.2097652,9.999e-05,2]
[334989555,1723712705177,249.43858476,9.999e-05,2]
[334989603,1723713032689,-850.51877308,0.0001026,2]
[334989605,1723713032699,-422.14513971,0.00010958,2]
[334989607,1723713032710,-311.2,0.00010959,2]
[334989609,1723713032720,-306.41943041,0.00011621,2]
[334989611,1723713032730,-250.0,0.0001178,2]
[334989613,1723713032739,-250.0,0.00011812,2]
[334989615,1723713032749,-728.34861839,0.00011842,2]
[334989617,1723713032759,-250.0,0.00011845,2]
[334989619,1723713032768,-250.0,0.00011877,2]
[334989621,1723713032778,-178.42166803,0.00011894,2]
[334989623,1723713032787,-250.0,0.00011909,2]
[334989637,1723713032949,-250.0,0.00011941,2]
[334989638,1723713032959,-250.0,0.00011974,2]
[334989639,1723713032970,-205.42133969,0.00011987,2]
[334989640,1723713032979,-154.88721469,0.00011987,2]
[334989641,1723713032990,-200.23688276,0.00011987,2]
[334989642,1723713032999,-154.8898457,0.00011999,2]
[334989643,1723713033010,-250.0,0.00012006,2]
[334989644,1723713033020,-250.0,0.00012038,2]
[334989645,1723713033031,-250.0,0.00012071,2]
[334989646,1723713033043,-250.0,0.00012103,2]
[334989647,1723713033053,-154.79103211,0.0001212,2]
[334989648,1723713033063,-250.0,0.00012135,2]
[334989649,1723713033073,-250.0,0.00012168,2]
[334989650,1723713033089,-250.0,0.000122,2]
[334989651,1723713033099,-300.0,0.00012232,2]
[334989652,1723713033109,-239.0,0.00012232,2]
[334989653,1723713033119,-250.0,0.00012232,2]
[334989654,1723713033128,-250.0,0.00012264,2]
[334989656,1723713033138,-374.7152979,0.00012278,2]
[334989658,1723713033148,-250.0,0.00012297,2]
[334989659,1723713033158,-250.0,0.00012329,2]
[334989661,1723713033168,-250.0,0.00012361,2]
[334989662,1723713033178,-250.0,0.00012394,2]
[334989664,1723713033188,-170.916729,0.00012986,2]
[334989666,1723713033198,-207.41445,0.00013178,2]
[334989668,1723713033209,-1413.0,0.00013328,2]
[334989670,1723713033219,-176.309541,0.00013362,2]
[334989672,1723713033229,-317.357174,0.00013362,2]
[334989674,1723713033239,-376.735151,0.00013362,2]
[334989676,1723713033249,-541.51926205,0.00013494,2]
[334989677,1723713033260,-317.357174,0.00013529,2]
[334989679,1723713033270,-376.735151,0.00013529,2]
[334989680,1723713033280,-3503.16092548,0.00013561,2]
[334989801,1723713038884,-1821.46796437,0.00013561,2]
[334989803,1723713038893,-746.71476102,0.00013598,2]
[334989805,1723713038903,-30336.67177402,0.00013598,2]
[334989814,1723713039306,-2173.95414734,0.00013598,2]
[334989815,1723713039316,-2000.0,0.00013598,2]
[334989816,1723713039326,-5413.45384835,0.00013598,2]
[334989817,1723713039336,-336.6717376,0.000136,2]
[334989818,1723713039345,-176.309541,0.00013696,2]
[334989819,1723713039359,-317.357174,0.00013696,2]
[334989820,1723713039369,-376.735151,0.00013696,2]
[334989821,1723713039379,-468.46555142,0.00013696,2]
[334989822,1723713039388,-986.61563657,0.00013697,2]
[334989823,1723713039399,-5039.63606187,0.00013698,2]
[334989824,1723713039409,-820.63052082,0.00013698,2]
[334989825,1723713039420,-500.0,0.00013698,2]
[334989826,1723713039432,-701.4,0.00013698,2]
[334989827,1723713039442,-151.0,0.00013698,2]
[334989828,1723713039453,-500.0,0.00013698,2]
[334989829,1723713039462,-651.86,0.00013698,2]
[334989830,1723713039474,-711.05,0.00013698,2]
[334989831,1723713039484,-500.0,0.00013698,2]
[334989832,1723713039493,-500.0,0.00013698,2]
[334989833,1723713039503,-621.93013811,0.00013698,2]
[334989834,1723713039513,-500.0,0.00013698,2]
[334989835,1723713039523,-500.0,0.00013698,2]
[334989836,1723713039533,-957.8,0.00013698,2]
[334989837,1723713039543,-551.6,0.00013698,2]
[334989838,1723713039553,-790.07,0.00013698,2]
[334989839,1723713039563,-500.0,0.00013698,2]
[334989840,1723713039573,-500.0,0.00013698,2]
[334989841,1723713039585,-500.0,0.00013698,2]
[334989842,1723713039595,-500.0,0.00013698,2]
[334989843,1723713039604,-500.0,0.00013698,2]
[334989844,1723713039613,-500.0,0.00013698,2]
[334989845,1723713039623,-500.0,0.00013698,2]
[334989846,1723713039632,-500.0,0.00013698,2]
[334989847,1723713039642,-500.0,0.00013698,2]
[334989848,1723713039651,-502.07068417,0.00013698,2]
[334989849,1723713039662,-513.31100977,0.00013698,2]
[334989850,1723713039672,-500.0,0.00013698,2]
[334989851,1723713039681,-520.72,0.00013698,2]
[334989852,1723713039692,-500.0,0.00013698,2]
[334989853,1723713039702,-502.44930886,0.00013698,2]
[334989854,1723713039712,-500.0,0.00013698,2]
[334989855,1723713039721,-500.0,0.00013698,2]
[334989856,1723713039731,-500.0,0.00013698,2]
[334989857,1723713039741,-715.02,0.00013698,2]
[334989858,1723713039751,-500.0,0.00013698,2]
[334989859,1723713039761,-510.34,0.00013698,2]
[334989860,1723713039771,-500.0,0.00013698,2]
[334989861,1723713039781,-505.8221134,0.00013698,2]
[334989862,1723713039792,-500.0,0.00013698,2]
[334989863,1723713039802,-500.0,0.00013698,2]
[334989864,1723713039813,-500.0,0.00013698,2]
[334989865,1723713039823,-500.0,0.00013698,2]
[334989866,1723713039836,-497.34186838,0.00013698,2]
[334989867,1723713039846,-497.50089015,0.00013698,2]
[334989868,1723713039857,-500.0,0.00013698,2]
[334989869,1723713039867,-521.0,0.00013698,2]
[334989870,1723713039877,-500.0,0.00013698,2]
[334989871,1723713039887,-500.0,0.00013698,2]
[334989872,1723713039897,-500.0,0.00013698,2]
[334989873,1723713039908,-500.0,0.00013698,2]
[334989874,1723713039919,-500.0,0.00013698,2]
[334989875,1723713039929,-500.0,0.00013698,2]
[334989876,1723713039940,-500.0,0.00013698,2]
[334989877,1723713039950,-500.0,0.00013698,2]
[334989878,1723713039960,-500.0,0.00013698,2]
[334989879,1723713039970,-350.97520516,0.00013698,2]
[334989880,1723713039979,-500.0,0.00013698,2]
[334989881,1723713039989,-500.0,0.00013698,2]
[334989882,1723713040002,-500.0,0.00013698,2]
[334989883,1723713040013,-500.0,0.00013698,2]
[334989884,1723713040023,-500.0,0.00013698,2]
[334989885,1723713040033,-500.0,0.00013698,2]
[334989886,1723713040043,-500.0,0.00013698,2]
[334989887,1723713040054,-500.0,0.00013698,2]
[334989888,1723713040063,-353.89,0.00013698,2]
[334989889,1723713040074,-500.0,0.00013698,2]
[334989890,1723713040086,-500.0,0.00013698,2]
[334989891,1723713040101,-500.0,0.00013698,2]
[334989892,1723713040111,-500.0,0.00013698,2]
[334989893,1723713040120,-500.0,0.00013698,2]
[334989894,1723713040129,-576.51,0.00013698,2]
[334989895,1723713040139,-500.0,0.00013698,2]
[334989896,1723713040148,-500.0,0.00013698,2]
[334989897,1723713040157,-501.72907514,0.00013698,2]
[334989898,1723713040167,-503.51216257,0.00013698,2]
[334989899,1723713040176,-500.0,0.00013698,2]
[334989900,1723713040185,-855.5,0.00013698,2]
[334989901,1723713040194,-501.65981032,0.00013698,2]
[334989902,1723713040204,-151.0,0.00013698,2]
[334989903,1723713040213,-500.0,0.00013698,2]
[334989904,1723713040222,-500.0,0.00013698,2]
[334989905,1723713040232,-500.0,0.00013698,2]
[334989906,1723713040242,-523.29315083,0.00013698,2]
[334989907,1723713040252,-501.24691792,0.00013698,2]
[334989908,1723713040262,-768.9,0.00013698,2]
[334989909,1723713040272,-676.27,0.00013698,2]
[334989910,1723713040282,-500.0,0.00013698,2]
[334989911,1723713040293,-154.191438,0.00013698,2]
[334989912,1723713040304,-500.0,0.00013698,2]
[334989913,1723713040314,-500.0,0.00013698,2]
[334989914,1723713040325,-505.47116648,0.00013698,2]
[334989915,1723713040336,-500.0,0.00013698,2]
[334989916,1723713040346,-448.67563699,0.00013698,2]
[334989919,1723713040695,-51.32436301,0.00013698,2]
[334989920,1723713040704,-500.0,0.00013698,2]
[334989921,1723713040713,-797.22,0.00013698,2]
[334989922,1723713040723,-500.0,0.00013698,2]
[334989923,1723713040732,-503.45819239,0.00013698,2]
[334989924,1723713040742,-500.0,0.00013698,2]
[334989925,1723713040752,-556.08411123,0.00013698,2]
[334989926,1723713040761,-676.03,0.00013698,2]
[334989927,1723713040771,-500.0,0.00013698,2]
[334989928,1723713040780,-500.0,0.00013698,2]
[334989929,1723713040790,-500.0,0.00013698,2]
[334989930,1723713040799,-639.42,0.00013698,2]
[334989931,1723713040808,-502.34263556,0.00013698,2]
[334989932,1723713040818,-516.19520943,0.00013698,2]
[334989933,1723713040829,-401.19248716,0.00013698,2]
[334989934,1723713040839,-500.0,0.00013698,2]
[334989935,1723713040849,-595.78,0.00013698,2]
[334989936,1723713040859,-500.0,0.00013698,2]
[334989937,1723713040869,-692.09,0.00013698,2]
[334989938,1723713040878,-567.77,0.00013698,2]
[334989939,1723713040888,-500.0,0.00013698,2]
[334989940,1723713040897,-504.12547622,0.00013698,2]
[334989941,1723713040907,-500.0,0.00013698,2]
[334989942,1723713040916,-744.98,0.00013698,2]
[334989943,1723713040926,-501.29046469,0.00013698,2]
[334989944,1723713040935,-701.11,0.00013698,2]
[334989945,1723713040945,-158.12638418,0.00013698,2]
[334989946,1723713040954,-500.0,0.00013698,2]
[334989947,1723713040963,-500.0,0.00013698,2]
[334989948,1723713040973,-500.0,0.00013698,2]
[334989949,1723713040983,-500.0,0.00013698,2]
[334989950,1723713040993,-510.40414741,0.00013698,2]
[334989951,1723713041003,-500.0,0.00013698,2]
[334989952,1723713041012,-500.0,0.00013698,2]
[334989953,1723713041145,-500.0,0.00013698,2]
[334989954,1723713041155,-500.0,0.00013698,2]
[334989955,1723713041165,-305.60270108,0.00013698,2]
[334989956,1723713041174,-500.0,0.00013698,2]
[334989957,1723713041184,-500.0,0.00013698,2]
[334989958,1723713041193,-500.0,0.00013698,2]
[334989959,1723713041203,-500.0,0.00013698,2]
[334989960,1723713041212,-500.0,0.00013698,2]
[334989961,1723713041222,-500.0,0.00013698,2]
[334989962,1723713041232,-500.0,0.00013698,2]
[334989963,1723713041241,-659.33,0.00013698,2]
[334989964,1723713041251,-500.0,0.00013698,2]
[334989965,1723713041261,-778.7,0.00013698,2]
[334989966,1723713041270,-500.0,0.00013698,2]
[334989967,1723713041280,-418.50111374,0.00013698,2]
[334989968,1723713041289,-500.0,0.00013698,2]
[334989969,1723713041299,-500.0,0.00013698,2]
[334989970,1723713041309,-186.882904,0.00013698,2]
[334989971,1723713041318,-500.0,0.00013698,2]
[334989972,1723713041327,-500.0,0.00013698,2]
[334989973,1723713041338,-500.0,0.00013698,2]
[334989974,1723713041350,-500.0,0.00013698,2]
[334989975,1723713041361,-506.27203636,0.00013698,2]
[334989976,1723713041370,-500.0,0.00013698,2]
[334989977,1723713041379,-500.0,0.00013698,2]
[334989978,1723713041388,-500.0,0.00013698,2]
[334989979,1723713041398,-500.0,0.00013698,2]
[334989980,1723713041407,-500.0,0.00013698,2]
[334989981,1723713041418,-500.0,0.00013698,2]
[334989982,1723713041430,-500.0,0.00013698,2]
[334989983,1723713041440,-500.0,0.00013698,2]
[334989984,1723713041449,-500.0,0.00013698,2]
[334989985,1723713041458,-646.54647418,0.00013698,2]
[334989986,1723713041468,-500.0,0.00013698,2]
[334989987,1723713041477,-501.04965276,0.00013698,2]
[334989988,1723713041486,-573.42,0.00013698,2]
[334989989,1723713041496,-500.0,0.00013698,2]
[334989990,1723713041508,-500.0,0.00013698,2]
[334989991,1723713041520,-511.45063558,0.00013698,2]
[334989992,1723713041531,-500.0,0.00013698,2]
[334989993,1723713041541,-500.0,0.00013698,2]
[334989994,1723713041552,-505.69710978,0.00013698,2]
[334989995,1723713041561,-500.0,0.00013698,2]
[334989996,1723713041571,-500.0,0.00013698,2]
[334989997,1723713041581,-500.0,0.00013698,2]
[334989998,1723713041591,-500.0,0.00013698,2]
[334989999,1723713041600,-499.31497447,0.00013698,2]
[334990000,1723713042106,273.37336231,9.9e-05,2]
[334990021,1723713044279,-4.91674342,0.00013698,2]
[334990022,1723713044291,-64.02690389,0.00013698,2]
[334990023,1723713044306,-538.04309611,0.00013698,2]
[334990024,1723713044319,-500.0,0.00013698,2]
[334990025,1723713044330,-119.27369639,0.00013698,2]
[334990038,1723713058392,273.37336231,9.9e-05,2]
[334990039,1723713074331,273.37336231,9.9e-05,2]
[334990040,1723713090046,273.37336231,9.9e-05,2]
[334990041,1723713095546,200.0,0.0001,2]
[334990042,1723713105406,273.37336231,9.9e-05,2]
[334990043,1723713120857,273.37336231,9.9e-05,2]
[334990044,1723713121604,500.0,0.00027,120]
[334990057,1723713150418,2111.27572321,9.9e-05,2]
[334990058,1723713159276,2785.9915217,9.9e-05,2]
[334990059,1723713165941,200.0,0.0001,2]
[334990060,1723713232221,200.0,0.0001,2]
[334990061,1723713282155,200.0,0.0001,2]
[334990062,1723713302127,200.0,0.0001,2]
[334990063,1723713362115,200.0,0.0001,2]
[334990065,1723713423921,200.0,0.0001,2]
[334990068,1723713718558,200.0,0.0001,2]
[334990069,1723713829087,309.52024362,9.999e-05,2]
[334990070,1723713896150,200.0,0.0001,2]
[334990074,1723714098159,309.7068249,9.999e-05,2]
[334990076,1723714122125,543.67907992,9.999e-05,2]
[334990077,1723714126573,3606.1291612,0.0001,2]
[334990078,1723714169838,540.96574953,9.999e-05,2]
[334990114,1723714231873,-300.0,0.00010358,2]
[334990115,1723714231883,-300.0,0.00010358,2]
[334990116,1723714231892,-24400.2169469,0.00010359,2]
[334990118,1723714231905,-360.65,0.00010959,2]
[334990120,1723714231915,-300.54,0.00010959,2]
[334990122,1723714231924,-250.45,0.00010959,2]
[334990123,1723714231934,-208.71,0.00010959,2]
[334990125,1723714231944,-173.93,0.00010959,2]
[334990127,1723714231953,-869.65,0.00010959,2]
[334990129,1723714231963,-250.0,0.0001122,2]
[334990131,1723714231972,-250.0,0.00011251,2]
[334990133,1723714231982,-250.0,0.00011282,2]
[334990135,1723714231992,-250.0,0.00011313,2]
[334990137,1723714232003,-250.0,0.00011344,2]
[334990139,1723714232014,-196.47111262,0.0001137,2]
[334990141,1723714232026,-400.0,0.0001137,2]
[334990143,1723714232037,-250.0,0.00011374,2]
[334990145,1723714232048,-420.0,0.0001139,2]
[334990146,1723714232060,-420.0,0.00011394,2]
[334990148,1723714232071,-250.0,0.00011405,2]
[334990150,1723714232083,-250.0,0.00011436,2]
[334990152,1723714232094,-250.0,0.00011467,2]
[334990154,1723714232104,-250.0,0.00011497,2]
[334990156,1723714232113,-250.0,0.00011528,2]
[334990158,1723714232124,-250.0,0.00011559,2]
[334990160,1723714232135,-250.0,0.0001159,2]
[334990162,1723714232146,-250.0,0.0001162,2]
[334990164,1723714232155,-250.0,0.00011651,2]
[334990166,1723714232166,-250.0,0.00011682,2]
[334990179,1723714232351,-250.0,0.00011713,2]
[334990180,1723714232365,-288.10768054,0.00011731,2]
[334990181,1723714232375,-250.0,0.00011744,2]
[334990182,1723714232384,-250.0,0.00011774,2]
[334990183,1723714232395,-250.0,0.00011805,2]
[334990184,1723714232405,-413.41235077,0.00011894,2]
[334990185,1723714232414,-728.34861839,0.00011894,2]
[334990186,1723714232424,-587.0,0.00012533,2]
[334990187,1723714232434,-850.51877308,0.00012629,2]
[334990188,1723714232445,-898.03401982,0.00012779,2]
[334990189,1723714232454,-157.00320308,0.00012886,2]
[334990190,1723714232464,-810.88959894,0.00012898,2]
[334990191,1723714232474,-404.1964714,0.00012898,2]
[334990192,1723714232483,-5909.58932523,0.000129,2]
[334990193,1723714232495,-154.77557542,0.00012934,2]
[334990194,1723714232505,-341.17980474,0.00012934,2]
[334990195,1723714232514,-154.77557542,0.00012934,2]
[334990196,1723714232524,-156.91451497,0.00012934,2]
[334990197,1723714232534,-155.02854101,0.00012934,2]
[334990198,1723714232543,-154.84699898,0.00012934,2]
[334990199,1723714232552,-301.33703286,0.00012934,2]
[334990200,1723714232561,-196.69322642,0.00012934,2]
[334990201,1723714232571,-154.95270798,0.00012934,2]
[334990202,1723714232582,-520.25072733,0.00012934,2]
[334990203,1723714232592,-569.2097652,0.00012934,2]
[334990204,1723714232602,-189.9631639,0.00012934,2]
[334990205,1723714232612,-180.67948358,0.00012971,2]
[334990206,1723714232622,-665.04001235,0.00012971,2]
[334990207,1723714232631,-602.58214927,0.00012971,2]
[334990208,1723714232641,-205.42133969,0.00012971,2]
[334990209,1723714232651,-636.72640188,0.00012971,2]
[334990210,1723714232661,-288.94537425,0.00012971,2]
[334990211,1723714232671,-320.60184754,0.00012971,2]
[334990212,1723714232680,-155.3786998,0.00012971,2]
[334990213,1723714232690,-210.10628593,0.00012985,2]
[334990214,1723714232699,-422.14513971,0.00012985,2]
[334990215,1723714232709,-162.370892,0.00012986,2]
[334990216,1723714232718,-154.92786634,0.00012989,2]
[334990217,1723714232728,-157.99537743,0.00013025,2]
[334990218,1723714232737,-2430.76089825,0.00013305,2]
[334990219,1723714232747,-401.05855743,0.00013373,2]
[334990220,1723714232759,-5324.62888985,0.00013472,2]
[334990221,1723714232771,-150.23079149,0.00013566,2]
[334990222,1723714232780,-375.31231479,0.00013588,2]
[334990223,1723714232791,-672.0432849,0.00013598,2]
[334990224,1723714232801,-46336.26184844,0.00013598,2]
[334990225,1723714232813,-8867.275,0.00013598,2]
[334990226,1723714232826,-1756.24545313,0.00013598,2]
[334990244,1723714239146,-9486.21443317,0.00013598,2]
[334990252,1723714240036,-154.77557542,0.00012898,2]
[334990253,1723714240046,-12648.735766,0.00013598,2]
[334990254,1723714240056,-10000.0,0.000136,2]
[334990255,1723714240066,-958.39990056,0.0001365,2]
[334990256,1723714240076,-375.31231479,0.0001367,2]
[334990257,1723714240087,-1876.56157395,0.00013678,2]
[334990258,1723714240097,-18312.75751862,0.0001368,2]
[334990259,1723714240107,-151.0,0.00013688,2]
[334990260,1723714240116,-186.882904,0.00013688,2]
[334990261,1723714240126,-196.456288,0.00013688,2]
[334990262,1723714240136,-196.456288,0.00013688,2]
[334990263,1723714240145,-709.142569,0.00013688,2]
[334990264,1723714240156,-709.142569,0.00013688,2]
[334990265,1723714240166,-151.0,0.00013688,2]
[334990266,1723714240175,-151.0,0.00013688,2]
[334990267,1723714240185,-177.474584,0.00013688,2]
[334990268,1723714240195,-151.0,0.00013688,2]
[334990269,1723714240204,-177.474584,0.00013688,2]
[334990270,1723714240214,-151.0,0.00013688,2]
[334990271,1723714240224,-4879.06009227,0.00013688,2]
[334990272,1723714240233,-1500.0,0.00013696,2]
[334990273,1723714240243,-1500.0,0.00013696,2]
[334990274,1723714240253,-500.0,0.00013696,2]
[334990275,1723714240263,-1973.23127316,0.00013697,2]
[334990276,1723714240272,-7559.4540928,0.00013698,2]
[334990277,1723714240282,-410.31526041,0.00013698,2]
[334990278,1723714240292,-500.59257658,0.00013698,2]
[334990279,1723714240302,-150.0,0.00013698,2]
[334990280,1723714240312,-500.0,0.00013698,2]
[334990281,1723714240321,-603.74,0.00013698,2]
[334990282,1723714240331,-521.0,0.00013698,2]
[334990283,1723714240342,-757.69,0.00013698,2]
[334990284,1723714240351,-500.0,0.00013698,2]
[334990285,1723714240360,-500.0,0.00013698,2]
[334990286,1723714240369,-502.34263556,0.00013698,2]
[334990287,1723714240379,-505.24616019,0.00013698,2]
[334990288,1723714240388,-500.0,0.00013698,2]
[334990289,1723714240398,-500.0,0.00013698,2]
[334990290,1723714240408,-504.12547622,0.00013698,2]
[334990291,1723714240417,-504.08853534,0.00013698,2]
[334990292,1723714240427,-765.81,0.00013698,2]
[334990293,1723714240437,-500.0,0.00013698,2]
[334990294,1723714240447,-516.19520943,0.00013698,2]
[334990295,1723714240456,-500.0,0.00013698,2]
[334990296,1723714240466,-500.0,0.00013698,2]
[334990297,1723714240475,-500.0,0.00013698,2]
[334990298,1723714240485,-270.83935344,0.00013698,2]
[334990299,1723714240495,-500.0,0.00013698,2]
[334990300,1723714240504,-500.0,0.00013698,2]
[334990301,1723714240514,-500.0,0.00013698,2]
[334990302,1723714240523,-500.0,0.00013698,2]
[334990303,1723714240532,-567.77,0.00013698,2]
[334990304,1723714240541,-500.0,0.00013698,2]
[334990305,1723714240551,-500.0,0.00013698,2]
[334990306,1723714240560,-500.0,0.00013698,2]
[334990307,1723714240570,-500.0,0.00013698,2]
[334990308,1723714240579,-500.0,0.00013698,2]
[334990309,1723714240591,-501.29046469,0.00013698,2]
[334990310,1723714240600,-510.40414741,0.00013698,2]
[334990311,1723714240610,-500.0,0.00013698,2]
[334990312,1723714240620,-500.0,0.00013698,2]
[334990313,1723714240629,-500.0,0.00013698,2]
[334990314,1723714240638,-500.0,0.00013698,2]
[334990315,1723714240648,-500.0,0.00013698,2]
[334990316,1723714240657,-158.12638418,0.00013698,2]
[334990317,1723714240667,-500.0,0.00013698,2]
[334990318,1723714240675,-418.50111374,0.00013698,2]
[334990319,1723714240685,-500.0,0.00013698,2]
[334990320,1723714240696,-500.0,0.00013698,2]
[334990321,1723714240707,-500.0,0.00013698,2]
[334990322,1723714240718,-305.60270108,0.00013698,2]
[334990323,1723714240728,-500.0,0.00013698,2]
[334990324,1723714240739,-500.0,0.00013698,2]
[334990325,1723714240748,-500.0,0.00013698,2]
[334990326,1723714240759,-500.0,0.00013698,2]
[334990327,1723714240769,-500.0,0.00013698,2]
[334990328,1723714240778,-500.0,0.00013698,2]
[334990329,1723714240787,-500.0,0.00013698,2]
[334990330,1723714240797,-500.0,0.00013698,2]
[334990331,1723714240807,-500.0,0.00013698,2]
[334990332,1723714240817,-500.0,0.00013698,2]
[334990333,1723714240826,-511.45063558,0.00013698,2]
[334990334,1723714240838,-500.0,0.00013698,2]
[334990335,1723714240849,-500.0,0.00013698,2]
[334990336,1723714240858,-751.62,0.00013698,2]
[334990337,1723714240868,-505.69710978,0.00013698,2]
[334990338,1723714240880,-500.0,0.00013698,2]
[334990339,1723714240890,-500.0,0.00013698,2]